[Event "*** SCC Grand Prix: Titled Tuesday Blitz"]
[Site "Chess.com"]
[Date "2020.06.02"]
[Round "6"]
[White "northridgehawk"]
[Black "CarlssonLudvig"]
[Result "1-0"]
[WhiteElo "2304"]
[BlackElo "2490"]
[TimeControl "180+1"]
[EndTime "11:07:42 PDT"]
[Termination "northridgehawk won on time"]

1. e4 {[%clk 0:02:50.4]} 1... c5 {[%clk 0:02:56.5]} 2. Nf3 {[%clk 0:02:49.2]}
2... d6 {[%clk 0:02:56.3]} 3. d4 {[%clk 0:02:44.2]} 3... cxd4 {[%clk 0:02:57.2]}
4. Nxd4 {[%clk 0:02:44.8]} 4... Nf6 {[%clk 0:02:56.8]} 5. Nc3 {[%clk 0:02:43.9]}
5... a6 {[%clk 0:02:54.7]} 6. h3 {[%clk 0:02:42.8]} 6... e5 {[%clk 0:02:53.9]}
7. Nde2 {[%clk 0:02:26.4]} 7... h5 {[%clk 0:02:49.4]} 8. g3 {[%clk 0:02:26.2]}
8... Be7 {[%clk 0:02:41.3]} 9. Bg2 {[%clk 0:02:26.6]} 9... b5 {[%clk 0:02:31.3]}
10. O-O {[%clk 0:02:25.8]} 10... Bb7 {[%clk 0:02:28.2]} 11. Be3 {[%clk
0:02:24.6]} 11... Nbd7 {[%clk 0:02:24.3]} 12. Nd5 {[%clk 0:02:20.7]} 12... Nxd5
{[%clk 0:02:16.2]} 13. exd5 {[%clk 0:02:21.6]} 13... h4 {[%clk 0:02:14.6]} 14.
g4 {[%clk 0:02:19.5]} 14... g5 {[%clk 0:01:35.3]} 15. Nc3 {[%clk 0:02:08.8]}
15... Kf8 {[%clk 0:01:33.7]} 16. Ne4 {[%clk 0:02:08.2]} 16... f6 {[%clk
0:01:27.9]} 17. Qd2 {[%clk 0:02:03.7]} 17... Kg7 {[%clk 0:01:22.4]} 18. a4
{[%clk 0:01:57.6]} 18... Nb6 {[%clk 0:00:49.5]} 19. b3 {[%clk 0:01:45.7]} 19...
bxa4 {[%clk 0:00:47.4]} 20. c4 {[%clk 0:01:36.5]} 20... axb3 {[%clk 0:00:45]}
21. Qb4 {[%clk 0:01:36.4]} 21... Nxd5 {[%clk 0:00:08.8]} 22. cxd5 {[%clk
0:01:35.9]} 22... Bxd5 {[%clk 0:00:09.1]} 23. Nxg5 {[%clk 0:01:32.6]} 23... fxg5
{[%clk 0:00:03.6]} 24. Bxd5 {[%clk 0:01:32.9]} 24... Rb8 {[%clk 0:00:04.5]} 25.
Qe4 {[%clk 0:01:29.7]} 25... b2 {[%clk 0:00:04.7]} 26. Rxa6 {[%clk 0:01:27.5]}
26... Rf8 {[%clk 0:00:05.2]} 27. Ra7 {[%clk 0:01:24.1]} 27... b1=Q {[%clk
0:00:01.8]} 28. Rxb1 {[%clk 0:01:23.2]} 28... Rxb1+ {[%clk 0:00:02.7]} 29. Qxb1
{[%clk 0:01:23.3]} 1-0

[Event "*** SCC Grand Prix: Titled Tuesday Blitz"]
[Site "Chess.com"]
[Date "2020.06.02"]
[Round "6"]
[White "nitpicker"]
[Black "Kostya26"]
[Result "1-0"]
[WhiteElo "2231"]
[BlackElo "2406"]
[TimeControl "180+1"]
[EndTime "11:07:45 PDT"]
[Termination "nitpicker won by resignation"]

1. d4 {[%clk 0:03:00.9]} 1... d5 {[%clk 0:02:58.7]} 2. c4 {[%clk 0:03:00.4]}
2... c6 {[%clk 0:02:58.3]} 3. Nf3 {[%clk 0:03:00.1]} 3... Nf6 {[%clk 0:02:58.7]}
4. e3 {[%clk 0:02:57.7]} 4... e6 {[%clk 0:02:58.6]} 5. Nc3 {[%clk 0:02:57]} 5...
Nbd7 {[%clk 0:02:58.5]} 6. Bd3 {[%clk 0:02:56.9]} 6... Bd6 {[%clk 0:02:58.5]} 7.
e4 {[%clk 0:02:51.2]} 7... dxe4 {[%clk 0:02:57.9]} 8. Nxe4 {[%clk 0:02:51.1]}
8... Nxe4 {[%clk 0:02:58.8]} 9. Bxe4 {[%clk 0:02:51]} 9... Nf6 {[%clk
0:02:59.7]} 10. Bc2 {[%clk 0:02:50.1]} 10... b6 {[%clk 0:02:59]} 11. O-O {[%clk
0:02:47.1]} 11... Bb7 {[%clk 0:02:59.1]} 12. b3 {[%clk 0:02:43.2]} 12... Qc7
{[%clk 0:02:57.5]} 13. Bb2 {[%clk 0:02:42.7]} 13... O-O-O {[%clk 0:02:56.8]} 14.
Qe2 {[%clk 0:02:30.1]} 14... c5 {[%clk 0:02:55.9]} 15. h3 {[%clk 0:02:22.1]}
15... cxd4 {[%clk 0:02:51.7]} 16. Nxd4 {[%clk 0:02:19.4]} 16... Bc5 {[%clk
0:02:46.1]} 17. Rfd1 {[%clk 0:02:09.5]} 17... Qf4 {[%clk 0:02:30.3]} 18. Nb5
{[%clk 0:02:05]} 18... Ne4 {[%clk 0:02:05.1]} 19. Bxe4 {[%clk 0:01:34.3]} 19...
Bxe4 {[%clk 0:02:06]} 20. Nxa7+ {[%clk 0:01:32.5]} 20... Kb7 {[%clk 0:02:05.4]}
21. Nb5 {[%clk 0:01:29.9]} 21... f5 {[%clk 0:01:40.1]} 22. Bd4 {[%clk 0:01:28]}
22... Bd6 {[%clk 0:01:20]} 23. Nxd6+ {[%clk 0:01:20]} 23... Rxd6 {[%clk
0:01:20.9]} 24. Be3 {[%clk 0:01:15.1]} 24... Qe5 {[%clk 0:01:17.8]} 25. f4
{[%clk 0:01:14.7]} 25... Rxd1+ {[%clk 0:01:13]} 26. Rxd1 {[%clk 0:01:15]} 26...
Qc7 {[%clk 0:01:11.9]} 27. Qd2 {[%clk 0:01:10.2]} 27... Ra8 {[%clk 0:00:56.2]}
28. a4 {[%clk 0:01:05.1]} 28... Rc8 {[%clk 0:00:42.3]} 29. Qb4 {[%clk
0:00:57.2]} 29... Qc6 {[%clk 0:00:36.3]} 30. Rd6 {[%clk 0:00:51.9]} 30... Qc7
{[%clk 0:00:31.7]} 31. Rxb6+ {[%clk 0:00:51.5]} 31... Ka8 {[%clk 0:00:31]} 1-0

[Event "*** SCC Grand Prix: Titled Tuesday Blitz"]
[Site "Chess.com"]
[Date "2020.06.02"]
[Round "6"]
[White "ecwinslow"]
[Black "MateSchmate"]
[Result "0-1"]
[WhiteElo "2146"]
[BlackElo "2392"]
[TimeControl "180+1"]
[EndTime "11:07:45 PDT"]
[Termination "MateSchmate won by resignation"]

1. e4 {[%clk 0:03:00.9]} 1... e6 {[%clk 0:02:58.4]} 2. d4 {[%clk 0:02:59.6]}
2... d5 {[%clk 0:02:59.3]} 3. Nd2 {[%clk 0:02:59]} 3... a6 {[%clk 0:02:58.5]} 4.
Bd3 {[%clk 0:02:53.7]} 4... c5 {[%clk 0:02:56.2]} 5. exd5 {[%clk 0:02:49.4]}
5... Qxd5 {[%clk 0:02:52.8]} 6. Ngf3 {[%clk 0:02:47]} 6... Nc6 {[%clk
0:02:51.5]} 7. dxc5 {[%clk 0:02:35.3]} 7... Bxc5 {[%clk 0:02:48.2]} 8. Ne4
{[%clk 0:02:19.5]} 8... Be7 {[%clk 0:02:45]} 9. Qe2 {[%clk 0:02:10.5]} 9... Nf6
{[%clk 0:02:42.6]} 10. O-O {[%clk 0:01:57.3]} 10... O-O {[%clk 0:02:39.3]} 11.
Bd2 {[%clk 0:01:42.9]} 11... e5 {[%clk 0:02:32.7]} 12. Nxf6+ {[%clk 0:01:28.8]}
12... Bxf6 {[%clk 0:02:32.2]} 13. Qe4 {[%clk 0:01:26.6]} 13... Qxe4 {[%clk
0:02:31.4]} 14. Bxe4 {[%clk 0:01:26.9]} 14... Bg4 {[%clk 0:02:31.4]} 15. h3
{[%clk 0:01:25.8]} 15... Bxf3 {[%clk 0:02:30.7]} 16. Bxf3 {[%clk 0:01:25.6]}
16... Nd4 {[%clk 0:02:27.8]} 17. Be4 {[%clk 0:01:24.3]} 17... Rac8 {[%clk
0:02:24.5]} 18. c3 {[%clk 0:01:24.1]} 18... Nc6 {[%clk 0:02:24]} 19. Be3 {[%clk
0:01:22]} 19... Rfd8 {[%clk 0:02:22.7]} 20. Rfd1 {[%clk 0:01:22]} 20... Rxd1+
{[%clk 0:02:18.4]} 21. Rxd1 {[%clk 0:01:20.8]} 21... Rd8 {[%clk 0:02:19.3]} 22.
Rxd8+ {[%clk 0:01:18.9]} 22... Bxd8 {[%clk 0:02:20.2]} 23. Kf1 {[%clk
0:01:18.3]} 23... g6 {[%clk 0:02:19.9]} 24. Ke2 {[%clk 0:01:16.8]} 24... f5
{[%clk 0:02:20]} 25. Bd5+ {[%clk 0:01:16.9]} 25... Kf8 {[%clk 0:02:20]} 26. Kd3
{[%clk 0:01:12.8]} 26... Ke7 {[%clk 0:02:20]} 27. b4 {[%clk 0:01:04.7]} 27...
Kd6 {[%clk 0:02:11.4]} 28. Bg8 {[%clk 0:01:04.4]} 28... e4+ {[%clk 0:02:03.4]}
29. Kc4 {[%clk 0:01:00.4]} 29... Ne5+ {[%clk 0:02:00.6]} 30. Kb3 {[%clk
0:00:56.2]} 30... Nd3 {[%clk 0:01:55.2]} 31. c4 {[%clk 0:00:55.6]} 31... f4
{[%clk 0:01:52.6]} 32. Bd4 {[%clk 0:00:49.4]} 32... Bh4 {[%clk 0:01:40.7]} 33.
c5+ {[%clk 0:00:38.5]} 33... Kc6 {[%clk 0:01:34.4]} 34. Bxh7 {[%clk 0:00:18.1]}
34... Bxf2 {[%clk 0:01:33.3]} 35. Bxf2 {[%clk 0:00:17.1]} 35... Nxf2 {[%clk
0:01:34.2]} 36. Kc3 {[%clk 0:00:16.7]} 36... g5 {[%clk 0:01:28.7]} 37. Kd2
{[%clk 0:00:13.4]} 37... e3+ {[%clk 0:01:27.4]} 38. Ke2 {[%clk 0:00:13.5]} 38...
Nh1 {[%clk 0:01:27.4]} 39. Bf5 {[%clk 0:00:12.2]} 39... Ng3+ {[%clk 0:01:28.3]}
0-1

[Event "*** SCC Grand Prix: Titled Tuesday Blitz"]
[Site "Chess.com"]
[Date "2020.06.02"]
[Round "6"]
[White "Lion-Al-Messi"]
[Black "Witik"]
[Result "1-0"]
[WhiteElo "2361"]
[BlackElo "2550"]
[TimeControl "180+1"]
[EndTime "11:07:46 PDT"]
[Termination "Lion-Al-Messi won on time"]

1. e4 {[%clk 0:03:00.9]} 1... c6 {[%clk 0:02:59.7]} 2. Nf3 {[%clk 0:03:01.1]}
2... d6 {[%clk 0:02:59]} 3. Nc3 {[%clk 0:03:01.3]} 3... h6 {[%clk 0:02:59.2]} 4.
d4 {[%clk 0:03:01.3]} 4... g5 {[%clk 0:02:58.6]} 5. Bc4 {[%clk 0:03:00.8]} 5...
Bg7 {[%clk 0:02:58.1]} 6. Be3 {[%clk 0:02:59.5]} 6... b5 {[%clk 0:02:57.2]} 7.
Bb3 {[%clk 0:02:59.1]} 7... Nd7 {[%clk 0:02:54.6]} 8. Ne2 {[%clk 0:02:58.5]}
8... Ngf6 {[%clk 0:02:51.7]} 9. Ng3 {[%clk 0:02:58.5]} 9... e6 {[%clk
0:02:48.2]} 10. Qe2 {[%clk 0:02:56.9]} 10... a5 {[%clk 0:02:33.2]} 11. a3 {[%clk
0:02:55]} 11... Ba6 {[%clk 0:02:27.7]} 12. e5 {[%clk 0:02:51]} 12... dxe5 {[%clk
0:02:17.7]} 13. dxe5 {[%clk 0:02:50.1]} 13... Nd5 {[%clk 0:02:17.5]} 14. Ne4
{[%clk 0:02:49.7]} 14... Nxe5 {[%clk 0:02:15.5]} 15. Nxe5 {[%clk 0:02:47]} 15...
Bxe5 {[%clk 0:02:16.4]} 16. O-O {[%clk 0:02:43.4]} 16... O-O {[%clk 0:01:58.1]}
17. Qh5 {[%clk 0:02:42.1]} 17... Nxe3 {[%clk 0:01:26.9]} 18. fxe3 {[%clk
0:02:37.3]} 18... Kg7 {[%clk 0:01:24.6]} 19. Rad1 {[%clk 0:02:28.5]} 19... Qe7
{[%clk 0:01:24.7]} 20. h4 {[%clk 0:02:11.8]} 20... f6 {[%clk 0:00:47.7]} 21.
hxg5 {[%clk 0:02:11.5]} 21... hxg5 {[%clk 0:00:29.7]} 22. Nc5 {[%clk 0:02:11.1]}
22... Rh8 {[%clk 0:00:19.9]} 23. Nxe6+ {[%clk 0:02:10.6]} 23... Qxe6 {[%clk
0:00:19.5]} 24. Qxh8+ {[%clk 0:02:11]} 24... Rxh8 {[%clk 0:00:18.2]} 25. Bxe6
{[%clk 0:02:11.9]} 25... g4 {[%clk 0:00:09.6]} 26. Rd7+ {[%clk 0:02:11.5]} 26...
Kh6 {[%clk 0:00:09.9]} 27. Bxg4 {[%clk 0:02:06.4]} 27... Bxb2 {[%clk 0:00:09.9]}
28. Kf2 {[%clk 0:02:02.2]} 28... Kg5 {[%clk 0:00:09.6]} 29. Rg7+ {[%clk
0:01:58.9]} 29... Kh6 {[%clk 0:00:07.3]} 30. Ra7 {[%clk 0:01:58.3]} 30... Kg5
{[%clk 0:00:04.9]} 31. Bf3 {[%clk 0:01:47.8]} 31... Bc8 {[%clk 0:00:03.7]} 32.
Rg7+ {[%clk 0:01:39.4]} 32... Kh6 {[%clk 0:00:03.3]} 33. Rg3 {[%clk 0:01:37.2]}
33... Bxa3 {[%clk 0:00:01.8]} 34. Rh1+ {[%clk 0:01:36.7]} 1-0

[Event "*** SCC Grand Prix: Titled Tuesday Blitz"]
[Site "Chess.com"]
[Date "2020.06.02"]
[Round "6"]
[White "fodorpoti"]
[Black "chessplayer9919"]
[Result "1-0"]
[WhiteElo "2765"]
[BlackElo "2518"]
[TimeControl "180+1"]
[EndTime "11:07:49 PDT"]
[Termination "fodorpoti won by resignation"]

1. d4 {[%clk 0:03:00.9]} 1... Nf6 {[%clk 0:02:59.8]} 2. c4 {[%clk 0:03:01.1]}
2... c5 {[%clk 0:02:59.8]} 3. d5 {[%clk 0:03:00.9]} 3... b5 {[%clk 0:03:00]} 4.
Nf3 {[%clk 0:03:01.2]} 4... bxc4 {[%clk 0:02:58.6]} 5. Nc3 {[%clk 0:03:01.1]}
5... d6 {[%clk 0:02:58.3]} 6. e4 {[%clk 0:03:01.2]} 6... g6 {[%clk 0:02:58.7]}
7. Bxc4 {[%clk 0:03:01.6]} 7... Nbd7 {[%clk 0:02:58.4]} 8. O-O {[%clk
0:03:01.5]} 8... Bg7 {[%clk 0:02:58.7]} 9. Re1 {[%clk 0:02:57.2]} 9... O-O
{[%clk 0:02:58.8]} 10. h3 {[%clk 0:02:57.2]} 10... Rb8 {[%clk 0:02:57.5]} 11.
Nd2 {[%clk 0:02:53.4]} 11... Ne8 {[%clk 0:02:57.2]} 12. Bf1 {[%clk 0:02:51.7]}
12... Nc7 {[%clk 0:02:53.8]} 13. Nc4 {[%clk 0:02:51.5]} 13... Ne5 {[%clk
0:02:32.3]} 14. Ne3 {[%clk 0:02:46.6]} 14... Ba6 {[%clk 0:02:23.4]} 15. Bxa6
{[%clk 0:02:38.6]} 15... Nxa6 {[%clk 0:02:24.3]} 16. f4 {[%clk 0:02:38.9]} 16...
Nd7 {[%clk 0:02:23.9]} 17. Qe2 {[%clk 0:02:37.4]} 17... Qa5 {[%clk 0:02:13.5]}
18. Nc4 {[%clk 0:02:28.3]} 18... Qc7 {[%clk 0:01:44.2]} 19. Bd2 {[%clk
0:02:26.1]} 19... Nb4 {[%clk 0:01:39.2]} 20. Rac1 {[%clk 0:02:22.1]} 20... Nb6
{[%clk 0:01:04.4]} 21. a3 {[%clk 0:02:19.9]} 21... Bxc3 {[%clk 0:00:34.3]} 22.
bxc3 {[%clk 0:02:11]} 22... Na6 {[%clk 0:00:27]} 23. Na5 {[%clk 0:02:11]} 23...
Nxd5 {[%clk 0:00:17.3]} 24. Qxa6 {[%clk 0:02:08.6]} 24... Nf6 {[%clk 0:00:10.3]}
25. Nc4 {[%clk 0:02:05.8]} 25... Qd7 {[%clk 0:00:04.1]} 26. Kh1 {[%clk
0:02:01.3]} 26... Qe6 {[%clk 0:00:03.7]} 27. e5 {[%clk 0:01:57.9]} 27... dxe5
{[%clk 0:00:01.4]} 28. Qxe6 {[%clk 0:01:57.6]} 28... fxe6 {[%clk 0:00:02]} 29.
Rxe5 {[%clk 0:01:57.5]} 29... Nd5 {[%clk 0:00:01.3]} 30. Rxe6 {[%clk 0:01:53.6]}
30... Nxf4 {[%clk 0:00:01.3]} 31. Bxf4 {[%clk 0:01:52.9]} 31... Rxf4 {[%clk
0:00:02.2]} 32. Ne3 {[%clk 0:01:53.4]} 32... Rbf8 {[%clk 0:00:01.7]} 33. Rxe7
{[%clk 0:01:52.8]} 33... Ra4 {[%clk 0:00:02.2]} 34. Rd1 {[%clk 0:01:49.2]} 34...
Rxa3 {[%clk 0:00:02.1]} 35. Rdd7 {[%clk 0:01:49.8]} 35... Rf2 {[%clk 0:00:02.1]}
36. Rg7+ {[%clk 0:01:48.9]} 36... Kf8 {[%clk 0:00:02.2]} 37. Rxh7 {[%clk
0:01:49.4]} 37... Ke8 {[%clk 0:00:02.1]} 38. Rb7 {[%clk 0:01:49.5]} 38... Ra1+
{[%clk 0:00:01.5]} 39. Kh2 {[%clk 0:01:49.4]} 39... Rd1 {[%clk 0:00:01.3]} 40.
Nxd1 {[%clk 0:01:48.1]} 1-0

[Event "*** SCC Grand Prix: Titled Tuesday Blitz"]
[Site "Chess.com"]
[Date "2020.06.02"]
[Round "6"]
[White "atwalcb"]
[Black "PSvidler"]
[Result "0-1"]
[WhiteElo "2384"]
[BlackElo "2979"]
[TimeControl "180+1"]
[EndTime "11:07:49 PDT"]
[Termination "PSvidler won by resignation"]

1. d4 {[%clk 0:02:46.7]} 1... d6 {[%clk 0:02:58.8]} 2. e4 {[%clk 0:02:45.6]}
2... Nf6 {[%clk 0:02:58.3]} 3. Nc3 {[%clk 0:02:45.2]} 3... g6 {[%clk 0:02:58.2]}
4. f4 {[%clk 0:02:43.9]} 4... Bg7 {[%clk 0:02:58.1]} 5. Nf3 {[%clk 0:02:42.7]}
5... O-O {[%clk 0:02:58.2]} 6. Be2 {[%clk 0:02:39.8]} 6... c5 {[%clk 0:02:57.8]}
7. dxc5 {[%clk 0:02:29.4]} 7... Qa5 {[%clk 0:02:57.4]} 8. O-O {[%clk 0:01:55.9]}
8... Qxc5+ {[%clk 0:02:57]} 9. Kh1 {[%clk 0:01:55.7]} 9... Bg4 {[%clk
0:02:55.7]} 10. Qd3 {[%clk 0:01:50.6]} 10... Nc6 {[%clk 0:02:53.8]} 11. Be3
{[%clk 0:01:49.8]} 11... Qa5 {[%clk 0:02:53.7]} 12. a3 {[%clk 0:01:44.8]} 12...
Nd7 {[%clk 0:02:51.4]} 13. b4 {[%clk 0:01:35.9]} 13... Qd8 {[%clk 0:02:47.3]}
14. Rab1 {[%clk 0:01:31.8]} 14... Rc8 {[%clk 0:02:46.8]} 15. Nd5 {[%clk
0:01:24.5]} 15... e6 {[%clk 0:02:44.1]} 16. b5 {[%clk 0:01:07.7]} 16... exd5
{[%clk 0:02:38.3]} 17. bxc6 {[%clk 0:01:07.8]} 17... dxe4 {[%clk 0:02:38.1]} 18.
Qxe4 {[%clk 0:01:06.2]} 18... bxc6 {[%clk 0:02:37.8]} 19. Bxa7 {[%clk
0:01:03.3]} 19... Re8 {[%clk 0:02:36.5]} 20. Qd3 {[%clk 0:00:56.9]} 20... Bf5
{[%clk 0:02:30.9]} 21. Qd2 {[%clk 0:00:53.9]} 21... Nc5 {[%clk 0:02:23.6]} 22.
Bxc5 {[%clk 0:00:49.6]} 22... dxc5 {[%clk 0:02:23.6]} 23. Bd3 {[%clk 0:00:29.4]}
23... Be6 {[%clk 0:02:23.4]} 24. Be4 {[%clk 0:00:27.7]} 24... Qxd2 {[%clk
0:02:15.6]} 25. Nxd2 {[%clk 0:00:28.6]} 25... Red8 {[%clk 0:02:10.7]} 26. Rfd1
{[%clk 0:00:28.4]} 26... Rd4 {[%clk 0:02:03.9]} 27. Bf3 {[%clk 0:00:26.3]} 27...
Rxf4 {[%clk 0:02:00.9]} 28. Ne4 {[%clk 0:00:24.6]} 28... c4 {[%clk 0:01:59.2]}
29. Nd6 {[%clk 0:00:24.2]} 29... Rd8 {[%clk 0:01:52]} 30. Bxc6 {[%clk
0:00:22.6]} 30... Rf2 {[%clk 0:01:50.9]} 31. Be4 {[%clk 0:00:21.1]} 31... Be5
{[%clk 0:01:49.5]} 32. Nb5 {[%clk 0:00:19.4]} 32... Rxd1+ {[%clk 0:01:48.4]} 33.
Rxd1 {[%clk 0:00:20.3]} 33... f5 {[%clk 0:01:48.9]} 34. Bf3 {[%clk 0:00:20.1]}
34... Rxc2 {[%clk 0:01:47]} 35. a4 {[%clk 0:00:17.2]} 35... Ra2 {[%clk
0:01:45.9]} 36. Re1 {[%clk 0:00:15.7]} 36... Kf7 {[%clk 0:01:45.6]} 37. g3
{[%clk 0:00:13.9]} 37... Kf6 {[%clk 0:01:44.9]} 38. Rc1 {[%clk 0:00:10.8]} 38...
Rxa4 {[%clk 0:01:44.4]} 39. Kg2 {[%clk 0:00:09.7]} 39... Ra2+ {[%clk 0:01:44.4]}
40. Kf1 {[%clk 0:00:10]} 40... Rxh2 {[%clk 0:01:43.9]} 41. Be2 {[%clk
0:00:10.3]} 41... Rh1+ {[%clk 0:01:42.8]} 0-1

[Event "*** SCC Grand Prix: Titled Tuesday Blitz"]
[Site "Chess.com"]
[Date "2020.06.02"]
[Round "6"]
[White "Jojo_1608"]
[Black "Thipsay"]
[Result "0-1"]
[WhiteElo "2172"]
[BlackElo "2458"]
[TimeControl "180+1"]
[EndTime "11:07:50 PDT"]
[Termination "Thipsay won by resignation"]

1. d4 {[%clk 0:03:00.9]} 1... Nf6 {[%clk 0:02:58.4]} 2. c4 {[%clk 0:03:01.2]}
2... g6 {[%clk 0:02:58.7]} 3. Nc3 {[%clk 0:03:01.6]} 3... Bg7 {[%clk 0:02:59.3]}
4. Nf3 {[%clk 0:03:00.7]} 4... d6 {[%clk 0:02:59.3]} 5. Bg5 {[%clk 0:03:01]}
5... h6 {[%clk 0:02:57.5]} 6. Bh4 {[%clk 0:03:00.8]} 6... c5 {[%clk 0:02:57.1]}
7. e3 {[%clk 0:02:59.3]} 7... g5 {[%clk 0:02:55.9]} 8. Bg3 {[%clk 0:02:59.2]}
8... Nh5 {[%clk 0:02:55.9]} 9. Be2 {[%clk 0:02:56.5]} 9... Qa5 {[%clk
0:02:50.6]} 10. Qc2 {[%clk 0:02:50.9]} 10... Nxg3 {[%clk 0:02:47.8]} 11. hxg3
{[%clk 0:02:49.5]} 11... g4 {[%clk 0:02:39.8]} 12. Nd2 {[%clk 0:02:33]} 12...
cxd4 {[%clk 0:02:39.5]} 13. exd4 {[%clk 0:02:32.2]} 13... Bxd4 {[%clk
0:02:38.3]} 14. Nb5 {[%clk 0:02:27.4]} 14... Bg7 {[%clk 0:02:30.3]} 15. Qe4
{[%clk 0:02:10.2]} 15... f5 {[%clk 0:02:16.8]} 16. Nxd6+ {[%clk 0:01:50.7]}
16... Kf8 {[%clk 0:02:16.5]} 17. Nxb7 {[%clk 0:01:49.6]} 17... Qxd2+ {[%clk
0:02:13.3]} 18. Kxd2 {[%clk 0:01:48.5]} 18... fxe4 {[%clk 0:02:13.2]} 19. Nc5
{[%clk 0:01:40.3]} 19... Bxb2 {[%clk 0:02:08.5]} 20. Rab1 {[%clk 0:01:40.2]}
20... Bg7 {[%clk 0:02:06.6]} 21. Ke3 {[%clk 0:01:40.4]} 21... Nd7 {[%clk
0:02:05.4]} 22. Ne6+ {[%clk 0:01:39]} 22... Kf7 {[%clk 0:02:02.8]} 23. Nc7
{[%clk 0:01:38.5]} 23... Rb8 {[%clk 0:01:57.4]} 24. Bxg4 {[%clk 0:01:33.4]}
24... Rxb1 {[%clk 0:01:56.1]} 25. Rxb1 {[%clk 0:01:33.8]} 25... Nf6 {[%clk
0:01:53.9]} 26. Be2 {[%clk 0:01:30.6]} 26... h5 {[%clk 0:01:49.3]} 27. c5 {[%clk
0:01:19.9]} 27... Bh6+ {[%clk 0:01:47.4]} 28. Kd4 {[%clk 0:01:08.5]} 28... Rd8+
{[%clk 0:01:46.3]} 29. Kc3 {[%clk 0:01:06.8]} 29... Bd2+ {[%clk 0:01:35.7]} 30.
Kb3 {[%clk 0:00:47.4]} 30... Ba5 {[%clk 0:01:31]} 31. Nb5 {[%clk 0:00:39.1]}
31... Be6+ {[%clk 0:01:29.8]} 32. Ka4 {[%clk 0:00:35.9]} 32... Rd2 {[%clk
0:01:25.5]} 33. Kxa5 {[%clk 0:00:28.5]} 33... Rxa2+ {[%clk 0:01:23.9]} 34. Kb4
{[%clk 0:00:28.6]} 34... Rxe2 {[%clk 0:01:23.7]} 35. Nxa7 {[%clk 0:00:28.4]}
35... Nd5+ {[%clk 0:01:21.5]} 36. Kb5 {[%clk 0:00:24.6]} 36... Nc3+ {[%clk
0:01:20.9]} 0-1

[Event "*** SCC Grand Prix: Titled Tuesday Blitz"]
[Site "Chess.com"]
[Date "2020.06.02"]
[Round "6"]
[White "rase"]
[Black "Bulldog167"]
[Result "1-0"]
[WhiteElo "2604"]
[BlackElo "2751"]
[TimeControl "180+1"]
[EndTime "11:07:53 PDT"]
[Termination "rase won by checkmate"]

1. e4 {[%clk 0:03:00]} 1... c6 {[%clk 0:02:52.1]} 2. a4 {[%clk 0:02:58.4]} 2...
d5 {[%clk 0:02:48.2]} 3. Nc3 {[%clk 0:02:58]} 3... Nf6 {[%clk 0:02:46.6]} 4. e5
{[%clk 0:02:54.5]} 4... Nfd7 {[%clk 0:02:46.3]} 5. f4 {[%clk 0:02:54.3]} 5... g6
{[%clk 0:02:37.6]} 6. Nf3 {[%clk 0:02:52.5]} 6... Bg7 {[%clk 0:02:32.1]} 7. d4
{[%clk 0:02:50]} 7... O-O {[%clk 0:02:22.2]} 8. Be3 {[%clk 0:02:46.7]} 8... Nb6
{[%clk 0:02:15.8]} 9. b3 {[%clk 0:02:35]} 9... Bg4 {[%clk 0:02:13.8]} 10. h3
{[%clk 0:02:34.2]} 10... Bxf3 {[%clk 0:02:12.5]} 11. Qxf3 {[%clk 0:02:33.9]}
11... f6 {[%clk 0:02:13.1]} 12. Qg3 {[%clk 0:02:18.1]} 12... fxe5 {[%clk
0:02:04.9]} 13. fxe5 {[%clk 0:02:17.3]} 13... N6d7 {[%clk 0:01:56.2]} 14. h4
{[%clk 0:02:09.5]} 14... c5 {[%clk 0:01:50.2]} 15. Nxd5 {[%clk 0:02:01.5]} 15...
cxd4 {[%clk 0:01:48.2]} 16. Bxd4 {[%clk 0:01:37]} 16... Qa5+ {[%clk 0:01:45.9]}
17. Bc3 {[%clk 0:01:33.5]} 17... Qc5 {[%clk 0:01:28.1]} 18. Bc4 {[%clk
0:01:30.3]} 18... Kh8 {[%clk 0:01:20.6]} 19. h5 {[%clk 0:01:25.8]} 19... gxh5
{[%clk 0:01:10.4]} 20. O-O-O {[%clk 0:01:18.3]} 20... Nc6 {[%clk 0:00:57.4]} 21.
Rxh5 {[%clk 0:01:13.3]} 21... e6 {[%clk 0:00:40]} 22. Rdh1 {[%clk 0:01:02]}
22... Kg8 {[%clk 0:00:17.9]} 23. Rxh7 {[%clk 0:00:59.4]} 23... Rf7 {[%clk
0:00:17.7]} 24. Rh8# {[%clk 0:00:59]} 1-0